[Event "Live Chess"]
[Site "Chess.com"]
[Date "2023.05.20"]
[Round "-"]
[White "LL220284LL"]
[Black "BostonStrangler"]
[Result "1/2-1/2"]
[WhiteElo "2400"]
[BlackElo "2083"]
[TimeControl "300"]
[EndTime "12:50:59 PDT"]
[Termination "Game drawn by repetition"]

1. Nf3 {[%clk 0:04:58.9]} 1... g6 {[%clk 0:04:58.2]} 2. d4 {[%clk 0:04:57.5]}
2... Bg7 {[%clk 0:04:55.5]} 3. e4 {[%clk 0:04:56.6]} 3... c5 {[%clk 0:04:54.2]}
4. dxc5 {[%clk 0:04:55.1]} 4... Qa5+ {[%clk 0:04:52.4]} 5. Nbd2 {[%clk
0:04:54.2]} 5... Qxc5 {[%clk 0:04:50.8]} 6. Bd3 {[%clk 0:04:53.9]} 6... Nf6
{[%clk 0:04:48.5]} 7. O-O {[%clk 0:04:52.9]} 7... O-O {[%clk 0:04:47.1]} 8. Re1
{[%clk 0:04:50.1]} 8... d6 {[%clk 0:04:45.8]} 9. Nb3 {[%clk 0:04:48.3]} 9... Qc7
{[%clk 0:04:44.3]} 10. h3 {[%clk 0:04:47.4]} 10... Nbd7 {[%clk 0:04:41.3]} 11.
c4 {[%clk 0:04:45.8]} 11... a5 {[%clk 0:04:36.7]} 12. Be3 {[%clk 0:04:42.4]}
12... a4 {[%clk 0:04:34.4]} 13. Nbd2 {[%clk 0:04:41.8]} 13... Nc5 {[%clk
0:04:32.2]} 14. Qe2 {[%clk 0:04:36.6]} 14... Bd7 {[%clk 0:04:24.9]} 15. Rac1
{[%clk 0:04:34.8]} 15... Bc6 {[%clk 0:04:12.5]} 16. Bxc5 {[%clk 0:04:30.9]}
16... dxc5 {[%clk 0:04:10.8]} 17. e5 {[%clk 0:04:30.4]} 17... Nd7 {[%clk
0:03:56.6]} 18. e6 {[%clk 0:04:28.3]} 18... fxe6 {[%clk 0:03:55.2]} 19. Qxe6+
{[%clk 0:04:28.2]} 19... Kh8 {[%clk 0:03:50.3]} 20. Be4 {[%clk 0:04:11.5]} 20...
Bxb2 {[%clk 0:03:42.4]} 21. Rc2 {[%clk 0:04:07.7]} 21... Bf6 {[%clk 0:03:39]}
22. Bxc6 {[%clk 0:04:04.4]} 22... bxc6 {[%clk 0:03:31.1]} 23. Ne4 {[%clk
0:04:02.4]} 23... Ne5 {[%clk 0:03:24.6]} 24. Nxe5 {[%clk 0:03:56.3]} 24... Qxe5
{[%clk 0:03:13.1]} 25. Nxf6 {[%clk 0:03:55.4]} 25... Qxf6 {[%clk 0:03:10.1]} 26.
Qxe7 {[%clk 0:03:53.8]} 26... Qxe7 {[%clk 0:03:01]} 27. Rxe7 {[%clk 0:03:53.7]}
27... Rab8 {[%clk 0:02:56.8]} 28. Rd2 {[%clk 0:03:51.7]} 28... Rbd8 {[%clk
0:02:44.8]} 29. Rde2 {[%clk 0:03:47.5]} 29... Rd1+ {[%clk 0:02:38.9]} 30. Kh2
{[%clk 0:03:46.3]} 30... Rd4 {[%clk 0:02:34.9]} 31. Rc7 {[%clk 0:03:44.1]} 31...
Rxc4 {[%clk 0:02:33.2]} 32. f3 {[%clk 0:03:40.9]} 32... Rd8 {[%clk 0:02:08]} 33.
Ree7 {[%clk 0:03:31.2]} 33... Rc2 {[%clk 0:02:04.9]} 34. Rxh7+ {[%clk
0:03:30.1]} 34... Kg8 {[%clk 0:02:03.5]} 35. Rcg7+ {[%clk 0:03:29.5]} 35... Kf8
{[%clk 0:02:00.5]} 36. Rxg6 {[%clk 0:03:28.8]} 36... Rxa2 {[%clk 0:01:52.8]} 37.
Rxc6 {[%clk 0:03:26.5]} 37... Kg8 {[%clk 0:01:38.4]} 38. Rh4 {[%clk 0:03:23.8]}
38... Rd5 {[%clk 0:01:33.5]} 39. Rc4 {[%clk 0:03:18.4]} 39... Rdd2 {[%clk
0:01:24.2]} 40. Rg6+ {[%clk 0:03:17.5]} 40... Kf7 {[%clk 0:01:17.8]} 41. Rgg4
{[%clk 0:03:17.4]} 41... a3 {[%clk 0:01:07.1]} 42. Rxc5 {[%clk 0:03:15.6]} 42...
Rab2 {[%clk 0:01:03.2]} 43. Ra5 {[%clk 0:03:14.7]} 43... a2 {[%clk 0:01:00.2]}
44. h4 {[%clk 0:03:13.7]} 44... Rd1 {[%clk 0:00:52.3]} 45. Rga4 {[%clk
0:03:12.2]} 45... Rdd2 {[%clk 0:00:51.2]} 46. Rg5 {[%clk 0:02:55.3]} 46... Rd1
{[%clk 0:00:48.2]} 47. Ra7+ {[%clk 0:02:53.1]} 47... Kf6 {[%clk 0:00:44]} 48.
Rga5 {[%clk 0:02:50.9]} 48... Rdd2 {[%clk 0:00:41.9]} 49. R7a6+ {[%clk
0:02:42.1]} 49... Kg7 {[%clk 0:00:37.5]} 50. Ra7+ {[%clk 0:02:42]} 50... Kf6
{[%clk 0:00:36.3]} 51. Rg5 {[%clk 0:02:34.4]} 51... Rd1 {[%clk 0:00:33.4]} 52.
Ra6+ {[%clk 0:02:31.6]} 52... Kf7 {[%clk 0:00:31.8]} 53. Rf5+ {[%clk 0:02:29.5]}
53... Kg7 {[%clk 0:00:28.9]} 54. Rfa5 {[%clk 0:02:25.9]} 54... Rdd2 {[%clk
0:00:27.6]} 55. Ra7+ {[%clk 0:02:21.2]} 55... Kf6 {[%clk 0:00:26.2]} 1/2-1/2

[Event "Live Chess"]
[Site "Chess.com"]
[Date "2023.05.20"]
[Round "-"]
[White "MrDodgy"]
[Black "ACx04"]
[Result "1-0"]
[WhiteElo "2286"]
[BlackElo "429"]
[TimeControl "300"]
[EndTime "12:51:08 PDT"]
[Termination "MrDodgy won by checkmate"]

1. e4 {[%clk 0:04:57.4]} 1... e5 {[%clk 0:04:57.3]} 2. f4 {[%clk 0:04:55.6]}
2... exf4 {[%clk 0:04:55.5]} 3. Nf3 {[%clk 0:04:54.1]} 3... Qf6 {[%clk
0:04:50.6]} 4. d4 {[%clk 0:04:52.3]} 4... d6 {[%clk 0:04:48.8]} 5. e5 {[%clk
0:04:50.2]} 5... dxe5 {[%clk 0:04:47.6]} 6. dxe5 {[%clk 0:04:50.1]} 6... Qe6
{[%clk 0:04:44.8]} 7. Nc3 {[%clk 0:04:45.1]} 7... Bb4 {[%clk 0:04:41.9]} 8. Bxf4
{[%clk 0:04:40.8]} 8... Bxc3+ {[%clk 0:04:37.9]} 9. bxc3 {[%clk 0:04:39.5]} 9...
f6 {[%clk 0:04:34.9]} 10. Nd4 {[%clk 0:04:32.8]} 10... Qb6 {[%clk 0:04:23.2]}
11. Bc4 {[%clk 0:04:17.1]} 11... Ne7 {[%clk 0:04:20.7]} 12. O-O {[%clk
0:04:12.9]} 12... Nec6 {[%clk 0:04:18.1]} 13. exf6 {[%clk 0:04:08.3]} 13... gxf6
{[%clk 0:04:16.4]} 14. Qh5+ {[%clk 0:04:06.6]} 14... Kd8 {[%clk 0:04:13.4]} 15.
Rad1 {[%clk 0:04:02.6]} 15... Nxd4 {[%clk 0:04:10.3]} 16. Rxd4+ {[%clk
0:04:01.1]} 16... Bd7 {[%clk 0:04:07.9]} 17. Kh1 {[%clk 0:03:52.5]} 17... Qb2
{[%clk 0:03:47.8]} 18. Qf7 {[%clk 0:03:39.7]} 18... Qxc2 {[%clk 0:03:39.4]} 19.
Qxf6+ {[%clk 0:03:31]} 19... Ke8 {[%clk 0:03:34.6]} 20. Re1+ {[%clk 0:03:26.3]}
20... Be6 {[%clk 0:03:20.3]} 21. Rxe6# {[%clk 0:03:23]} 1-0

[Event "Live Chess"]
[Site "Chess.com"]
[Date "2023.05.20"]
[Round "-"]
[White "booktrunk"]
[Black "Ian-Morley"]
[Result "1-0"]
[WhiteElo "1302"]
[BlackElo "976"]
[TimeControl "300"]
[EndTime "12:51:15 PDT"]
[Termination "booktrunk won by checkmate"]

1. d4 {[%clk 0:04:59.2]} 1... e5 {[%clk 0:04:58.3]} 2. dxe5 {[%clk 0:04:57.9]}
2... Nc6 {[%clk 0:04:58]} 3. c3 {[%clk 0:04:55.5]} 3... Qe7 {[%clk 0:04:57.5]}
4. g3 {[%clk 0:04:52.8]} 4... Qxe5 {[%clk 0:04:38.2]} 5. Bf4 {[%clk 0:04:51.5]}
5... Qf6 {[%clk 0:04:32.6]} 6. Bxc7 {[%clk 0:04:49.4]} 6... Be7 {[%clk
0:04:22.5]} 7. Nf3 {[%clk 0:04:46.9]} 7... Nh6 {[%clk 0:04:17.4]} 8. Bf4 {[%clk
0:04:43.7]} 8... d6 {[%clk 0:04:03.7]} 9. Bg2 {[%clk 0:04:40.5]} 9... O-O {[%clk
0:03:58.1]} 10. Nbd2 {[%clk 0:04:34.3]} 10... Ne5 {[%clk 0:03:54.3]} 11. Ne4
{[%clk 0:04:31]} 11... Nxf3+ {[%clk 0:03:51.7]} 12. Bxf3 {[%clk 0:04:26.9]}
12... Qg6 {[%clk 0:03:49.6]} 13. Qd5 {[%clk 0:04:14.9]} 13... Nf5 {[%clk
0:03:41.5]} 14. O-O-O {[%clk 0:04:06.3]} 14... Rb8 {[%clk 0:03:39.5]} 15. g4
{[%clk 0:03:55.1]} 15... Be6 {[%clk 0:03:36.1]} 16. gxf5 {[%clk 0:03:47.3]}
16... Bxd5 {[%clk 0:03:33.6]} 17. fxg6 {[%clk 0:03:44.9]} 17... Bxe4 {[%clk
0:03:32.7]} 18. Bxe4 {[%clk 0:03:43.8]} 18... fxg6 {[%clk 0:03:30.3]} 19. Bxd6
{[%clk 0:03:42.6]} 19... Bxd6 {[%clk 0:03:28]} 20. Rxd6 {[%clk 0:03:40.9]} 20...
Rxf2 {[%clk 0:03:26.4]} 21. Bf3 {[%clk 0:03:37.9]} 21... Kf7 {[%clk 0:03:18.5]}
22. Rd7+ {[%clk 0:03:36.2]} 22... Ke6 {[%clk 0:03:01.9]} 23. Rxg7 {[%clk
0:03:34.7]} 23... Kf6 {[%clk 0:02:52.8]} 24. Rxh7 {[%clk 0:03:33.5]} 24... Kf5
{[%clk 0:02:49.8]} 25. h4 {[%clk 0:03:30.1]} 25... Rd8 {[%clk 0:02:46.5]} 26.
Rxb7 {[%clk 0:03:26.4]} 26... g5 {[%clk 0:01:42.1]} 27. Rxa7 {[%clk 0:03:09.4]}
27... gxh4 {[%clk 0:01:37.6]} 28. Ra5+ {[%clk 0:03:07.6]} 28... Kf4 {[%clk
0:01:34.1]} 29. Ra4+ {[%clk 0:03:06.4]} 29... Kg3 {[%clk 0:01:32.6]} 30. Raxh4
{[%clk 0:03:04.5]} 30... Rg8 {[%clk 0:01:31.3]} 31. R1h3# {[%clk 0:03:02.8]} 1-0

[Event "Live Chess"]
[Site "Chess.com"]
[Date "2023.05.20"]
[Round "-"]
[White "BillythekidFellowes"]
[Black "ramses-IIG"]
[Result "1-0"]
[WhiteElo "2030"]
[BlackElo "825"]
[TimeControl "300"]
[EndTime "12:51:35 PDT"]
[Termination "BillythekidFellowes won by resignation"]

1. e4 {[%clk 0:04:55.8]} 1... d5 {[%clk 0:04:59.3]} 2. exd5 {[%clk 0:04:54.4]}
2... Qxd5 {[%clk 0:04:59.2]} 3. Nc3 {[%clk 0:04:53.4]} 3... Qe6+ {[%clk
0:04:59.1]} 4. Qe2 {[%clk 0:04:52.1]} 4... Qg6 {[%clk 0:04:59]} 5. d4 {[%clk
0:04:51.2]} 5... c6 {[%clk 0:04:57.4]} 6. Nf3 {[%clk 0:04:50.6]} 6... e6 {[%clk
0:04:56.2]} 7. Ne5 {[%clk 0:04:50.1]} 7... Qf6 {[%clk 0:04:52.5]} 8. h4 {[%clk
0:04:49.4]} 8... Bd6 {[%clk 0:04:50]} 9. Bg5 {[%clk 0:04:48.2]} 9... Qf5 {[%clk
0:04:39.2]} 10. g4 {[%clk 0:04:44.8]} 10... Qxg5 {[%clk 0:04:19.7]} 11. hxg5
{[%clk 0:04:42.8]} 11... Bxe5 {[%clk 0:04:19.6]} 12. Qxe5 {[%clk 0:04:36.8]} 1-0

[Event "Live Chess"]
[Site "Chess.com"]
[Date "2023.05.20"]
[Round "-"]
[White "gregor1903"]
[Black "McSlash1"]
[Result "0-1"]
[WhiteElo "1563"]
[BlackElo "2055"]
[TimeControl "300"]
[EndTime "12:51:38 PDT"]
[Termination "McSlash1 won by resignation"]

1. e4 {[%clk 0:04:54.3]} 1... c5 {[%clk 0:04:59.4]} 2. d4 {[%clk 0:04:52.2]}
2... cxd4 {[%clk 0:04:58.2]} 3. c3 {[%clk 0:04:50.5]} 3... dxc3 {[%clk
0:04:58.1]} 4. Nxc3 {[%clk 0:04:49.1]} 4... Nc6 {[%clk 0:04:58]} 5. Nf3 {[%clk
0:04:47.1]} 5... e6 {[%clk 0:04:57.6]} 6. Bc4 {[%clk 0:04:45.4]} 6... Qc7 {[%clk
0:04:56.9]} 7. Nb5 {[%clk 0:04:38.8]} 7... Qb8 {[%clk 0:04:55.7]} 8. O-O {[%clk
0:04:32.8]} 8... a6 {[%clk 0:04:54.8]} 9. Nc3 {[%clk 0:04:31.3]} 9... Nf6 {[%clk
0:04:53.1]} 10. Re1 {[%clk 0:04:24.7]} 10... Ng4 {[%clk 0:04:52.4]} 11. g3
{[%clk 0:04:16.2]} 11... Nge5 {[%clk 0:04:48.8]} 12. Bb3 {[%clk 0:04:07.6]}
12... Nxf3+ {[%clk 0:04:46]} 13. Qxf3 {[%clk 0:04:05.8]} 13... Be7 {[%clk
0:04:45.4]} 14. Bf4 {[%clk 0:03:57.4]} 14... Bd6 {[%clk 0:04:40.7]} 15. Be3
{[%clk 0:03:25.9]} 15... Ne5 {[%clk 0:04:36.8]} 16. Qh5 {[%clk 0:03:21.8]} 16...
O-O {[%clk 0:04:33.5]} 17. f4 {[%clk 0:03:13.5]} 17... g6 {[%clk 0:04:32.6]} 18.
Qe2 {[%clk 0:02:50.6]} 18... Nc6 {[%clk 0:04:29.2]} 19. Rad1 {[%clk 0:02:44.5]}
19... Be7 {[%clk 0:04:27.4]} 20. e5 {[%clk 0:02:35.8]} 20... d6 {[%clk
0:04:25.5]} 21. Bc1 {[%clk 0:02:29.2]} 21... dxe5 {[%clk 0:04:23.3]} 22. fxe5
{[%clk 0:02:28.2]} 22... b5 {[%clk 0:04:20.5]} 23. Qe4 {[%clk 0:02:18.8]} 23...
Bb7 {[%clk 0:04:18.1]} 24. Bh6 {[%clk 0:02:04]} 24... Rd8 {[%clk 0:04:14.9]} 25.
Qf4 {[%clk 0:01:56.2]} 25... Rxd1 {[%clk 0:04:01.8]} 26. Rxd1 {[%clk 0:01:54.6]}
26... Qxe5 {[%clk 0:04:01.2]} 27. Qxe5 {[%clk 0:01:43.6]} 27... Nxe5 {[%clk
0:04:01.1]} 28. Bf4 {[%clk 0:01:36.1]} 28... Bc5+ {[%clk 0:03:58.4]} 29. Kf1
{[%clk 0:01:31.6]} 29... Ng4 {[%clk 0:03:47.5]} 30. Rd7 {[%clk 0:01:28.7]} 30...
Bf3 {[%clk 0:03:35.8]} 31. Bd1 {[%clk 0:01:23.7]} 31... Bxd1 {[%clk 0:03:31.9]}
32. Rxd1 {[%clk 0:01:23.6]} 32... e5 {[%clk 0:03:30.3]} 33. Bc1 {[%clk
0:01:16.2]} 33... Bd4 {[%clk 0:03:23.6]} 34. h3 {[%clk 0:01:12]} 34... Nf6
{[%clk 0:03:18.7]} 35. Bg5 {[%clk 0:01:06]} 35... Kg7 {[%clk 0:03:16]} 36. Rd2
{[%clk 0:00:57.8]} 36... Bxc3 {[%clk 0:03:10]} 37. bxc3 {[%clk 0:00:56.4]} 37...
Ne4 {[%clk 0:03:09.5]} 38. Rd5 {[%clk 0:00:49]} 38... Nxg5 {[%clk 0:03:08.2]}
39. Rxe5 {[%clk 0:00:48.1]} 39... Nf3 {[%clk 0:02:59.1]} 40. Re3 {[%clk
0:00:40.5]} 40... Nd2+ {[%clk 0:02:54.2]} 41. Ke2 {[%clk 0:00:36.9]} 41... Nc4
{[%clk 0:02:53]} 42. Kd3 {[%clk 0:00:33.9]} 0-1

[Event "Live Chess"]
[Site "Chess.com"]
[Date "2023.05.20"]
[Round "-"]
[White "raminguy"]
[Black "Wild_Tiger"]
[Result "1-0"]
[WhiteElo "1977"]
[BlackElo "1056"]
[TimeControl "300"]
[EndTime "12:52:08 PDT"]
[Termination "raminguy won by checkmate"]

1. d3 {[%clk 0:04:58.4]} 1... d5 {[%clk 0:04:57.9]} 2. d4 {[%clk 0:04:55]} 2...
Nc6 {[%clk 0:04:57.4]} 3. Nc3 {[%clk 0:04:53.3]} 3... Nf6 {[%clk 0:04:54.6]} 4.
Bf4 {[%clk 0:04:52]} 4... Bf5 {[%clk 0:04:50.9]} 5. Nb5 {[%clk 0:04:49.9]} 5...
Rc8 {[%clk 0:04:29.1]} 6. Nf3 {[%clk 0:04:47.5]} 6... a6 {[%clk 0:04:25.1]} 7.
Nc3 {[%clk 0:04:44.8]} 7... e6 {[%clk 0:04:20.9]} 8. e3 {[%clk 0:04:42.8]} 8...
Bd6 {[%clk 0:04:17]} 9. Ne5 {[%clk 0:04:40.9]} 9... Ne4 {[%clk 0:04:04.8]} 10.
h4 {[%clk 0:04:35.9]} 10... Nxc3 {[%clk 0:04:00.8]} 11. bxc3 {[%clk 0:04:33]}
11... Nxe5 {[%clk 0:03:45.9]} 12. Bxe5 {[%clk 0:04:25.6]} 12... Bxe5 {[%clk
0:03:43.9]} 13. dxe5 {[%clk 0:04:25.5]} 13... c6 {[%clk 0:03:34.1]} 14. g4
{[%clk 0:04:24.4]} 14... Be4 {[%clk 0:03:05.6]} 15. f3 {[%clk 0:04:22.7]} 15...
Qa5 {[%clk 0:02:56.8]} 16. fxe4 {[%clk 0:04:20.1]} 16... Qxc3+ {[%clk 0:02:56]}
17. Kf2 {[%clk 0:04:18.1]} 17... Qxe5 {[%clk 0:02:50.7]} 18. Rb1 {[%clk
0:04:14.5]} 18... Qxe4 {[%clk 0:02:48]} 19. Bg2 {[%clk 0:04:11.5]} 19... Qe5
{[%clk 0:02:32.8]} 20. Rxb7 {[%clk 0:04:04.3]} 20... O-O {[%clk 0:02:22.6]} 21.
h5 {[%clk 0:03:56.7]} 21... f5 {[%clk 0:02:21]} 22. g5 {[%clk 0:03:52.3]} 22...
f4 {[%clk 0:02:16]} 23. e4 {[%clk 0:03:50.9]} 23... Qxg5 {[%clk 0:02:08.4]} 24.
exd5 {[%clk 0:03:41.8]} 24... exd5 {[%clk 0:01:43.3]} 25. Rg1 {[%clk 0:03:23.4]}
25... f3 {[%clk 0:01:35.2]} 26. Bxf3 {[%clk 0:03:16.7]} 26... Qxh5 {[%clk
0:01:23.5]} 27. Rgxg7+ {[%clk 0:03:13.7]} 27... Kh8 {[%clk 0:01:17.1]} 28. Rg8+
{[%clk 0:02:47.3]} 28... Rxg8 {[%clk 0:01:05.6]} 29. Bxh5 {[%clk 0:02:40.8]}
29... Rcf8+ {[%clk 0:01:05.1]} 30. Bf3 {[%clk 0:02:39.2]} 30... Rg6 {[%clk
0:00:52.5]} 31. Qd4+ {[%clk 0:02:36.8]} 31... Kg8 {[%clk 0:00:46.7]} 32. Qh4
{[%clk 0:02:30.1]} 32... h6 {[%clk 0:00:40.8]} 33. Qe7 {[%clk 0:02:27.1]} 33...
h5 {[%clk 0:00:27.8]} 34. Qh7# {[%clk 0:02:25.5]} 1-0

[Event "Live Chess"]
[Site "Chess.com"]
[Date "2023.05.20"]
[Round "-"]
[White "EdvancedChess"]
[Black "Fazer180"]
[Result "0-1"]
[WhiteElo "1902"]
[BlackElo "1749"]
[TimeControl "300"]
[EndTime "12:52:09 PDT"]
[Termination "Fazer180 won by resignation"]

1. e4 {[%clk 0:04:59.5]} 1... e6 {[%clk 0:04:59.5]} 2. Nf3 {[%clk 0:04:59]} 2...
d5 {[%clk 0:04:58.4]} 3. exd5 {[%clk 0:04:58.9]} 3... exd5 {[%clk 0:04:57.2]} 4.
d4 {[%clk 0:04:58.8]} 4... Be6 {[%clk 0:04:56.1]} 5. Bd3 {[%clk 0:04:58.7]} 5...
Nf6 {[%clk 0:04:55.4]} 6. O-O {[%clk 0:04:58.6]} 6... Bd6 {[%clk 0:04:54.5]} 7.
c3 {[%clk 0:04:58.5]} 7... O-O {[%clk 0:04:53.7]} 8. Bg5 {[%clk 0:04:58]} 8...
h6 {[%clk 0:04:52.5]} 9. Bh4 {[%clk 0:04:57.1]} 9... c5 {[%clk 0:04:49.5]} 10.
Nbd2 {[%clk 0:04:56.2]} 10... Nc6 {[%clk 0:04:47.3]} 11. Qb3 {[%clk 0:04:49]}
11... b6 {[%clk 0:04:36.9]} 12. Qc2 {[%clk 0:04:32.4]} 12... c4 {[%clk
0:04:30.8]} 13. Bf5 {[%clk 0:04:30.6]} 13... Bxf5 {[%clk 0:04:25.6]} 14. Qxf5
{[%clk 0:04:29.3]} 14... Re8 {[%clk 0:04:12.6]} 15. Bxf6 {[%clk 0:04:21.7]}
15... gxf6 {[%clk 0:04:09.8]} 16. Rfe1 {[%clk 0:04:18.5]} 16... Ne7 {[%clk
0:03:59.1]} 17. Qxf6 {[%clk 0:04:15.5]} 17... Qc7 {[%clk 0:03:46.4]} 18. Qxh6
{[%clk 0:04:10.9]} 18... Ng6 {[%clk 0:03:45.7]} 19. Ng5 {[%clk 0:04:09.3]} 19...
Bf4 {[%clk 0:03:37.4]} 20. Qh7+ {[%clk 0:03:59.6]} 20... Kf8 {[%clk 0:03:36.7]}
21. Ndf3 {[%clk 0:03:52.1]} 21... Rxe1+ {[%clk 0:02:55.9]} 22. Rxe1 {[%clk
0:03:50.3]} 22... Re8 {[%clk 0:02:55.5]} 23. Ne6+ {[%clk 0:03:49]} 23... fxe6
{[%clk 0:02:46.2]} 24. Qxc7 {[%clk 0:03:47.5]} 24... Bxc7 {[%clk 0:02:44.6]} 25.
Ng5 {[%clk 0:03:46.9]} 0-1

[Event "Live Chess"]
[Site "Chess.com"]
[Date "2023.05.20"]
[Round "-"]
[White "TheSmoulderingMaster"]
[Black "JohanKjeldahl"]
[Result "0-1"]
[WhiteElo "1731"]
[BlackElo "1822"]
[TimeControl "300"]
[EndTime "12:52:10 PDT"]
[Termination "JohanKjeldahl won by resignation"]

1. e4 {[%clk 0:04:58.6]} 1... c5 {[%clk 0:04:58]} 2. Nf3 {[%clk 0:04:57.6]} 2...
e6 {[%clk 0:04:57]} 3. d4 {[%clk 0:04:56.9]} 3... cxd4 {[%clk 0:04:56.1]} 4.
Nxd4 {[%clk 0:04:55.4]} 4... Nc6 {[%clk 0:04:55.6]} 5. Nc3 {[%clk 0:04:54.6]}
5... Qc7 {[%clk 0:04:52.2]} 6. Nb3 {[%clk 0:04:53]} 6... a6 {[%clk 0:04:50.4]}
7. Be3 {[%clk 0:04:52]} 7... b5 {[%clk 0:04:48.8]} 8. Be2 {[%clk 0:04:50.4]}
8... Bb7 {[%clk 0:04:47.6]} 9. O-O {[%clk 0:04:49]} 9... Nf6 {[%clk 0:04:44.5]}
10. Kh1 {[%clk 0:04:46.2]} 10... Be7 {[%clk 0:04:43.4]} 11. f4 {[%clk
0:04:45.2]} 11... d6 {[%clk 0:04:42.2]} 12. Bf3 {[%clk 0:04:37.4]} 12... O-O
{[%clk 0:04:37.5]} 13. Qe2 {[%clk 0:04:35.9]} 13... Rad8 {[%clk 0:04:34.1]} 14.
Qf2 {[%clk 0:04:34.5]} 14... Qb8 {[%clk 0:04:27]} 15. Bb6 {[%clk 0:04:31.2]}
15... Rd7 {[%clk 0:04:24.8]} 16. Rad1 {[%clk 0:04:29.3]} 16... Bd8 {[%clk
0:04:13.7]} 17. Rfe1 {[%clk 0:04:26.6]} 17... Bxb6 {[%clk 0:04:10.6]} 18. Qxb6
{[%clk 0:04:25.4]} 18... Rfd8 {[%clk 0:04:08.4]} 19. e5 {[%clk 0:04:22.2]} 19...
dxe5 {[%clk 0:04:04.3]} 20. Bxc6 {[%clk 0:04:19.6]} 20... Rxd1 {[%clk
0:04:00.5]} 21. Rxd1 {[%clk 0:04:18.3]} 21... Rxd1+ {[%clk 0:03:58.8]} 22. Nxd1
{[%clk 0:04:17.4]} 22... Qd6 {[%clk 0:03:51.4]} 23. Qg1 {[%clk 0:03:23.9]} 23...
Qxc6 {[%clk 0:03:48]} 24. fxe5 {[%clk 0:03:20.4]} 24... Ng4 {[%clk 0:03:46.6]}
25. Nd4 {[%clk 0:03:14.6]} 25... Qe4 {[%clk 0:03:33.9]} 26. h3 {[%clk
0:03:11.7]} 26... Nxe5 {[%clk 0:03:27.2]} 27. c3 {[%clk 0:03:02.4]} 27... Nd3
{[%clk 0:03:19.6]} 28. Ne3 {[%clk 0:02:57.3]} 28... Nf4 {[%clk 0:03:05.6]} 29.
Nf3 {[%clk 0:02:52.5]} 29... Nxh3 {[%clk 0:03:01.4]} 30. gxh3 {[%clk 0:02:48.1]}
30... Qxf3+ {[%clk 0:02:59.4]} 31. Kh2 {[%clk 0:02:42.7]} 31... Qe2+ {[%clk
0:02:52.9]} 32. Kg3 {[%clk 0:02:39.9]} 32... Qxb2 {[%clk 0:02:49.2]} 33. Kf4
{[%clk 0:02:35.8]} 33... Qxc3 {[%clk 0:02:41.5]} 34. Qd1 {[%clk 0:02:33.8]}
34... Qf6+ {[%clk 0:02:38.4]} 35. Kg3 {[%clk 0:02:29.5]} 35... Qg5+ {[%clk
0:02:27.9]} 36. Kf2 {[%clk 0:02:26.7]} 36... Qf4+ {[%clk 0:02:24.6]} 37. Ke1
{[%clk 0:02:12.1]} 37... Qxe3+ {[%clk 0:02:21.2]} 38. Kf1 {[%clk 0:02:10.3]}
38... Qf3+ {[%clk 0:02:18.6]} 0-1

[Event "Live Chess"]
[Site "Chess.com"]
[Date "2023.05.20"]
[Round "-"]
[White "Pablo_dmp"]
[Black "Ayush_prahlad_Gupta"]
[Result "1-0"]
[WhiteElo "1870"]
[BlackElo "1780"]
[TimeControl "300"]
[EndTime "12:52:19 PDT"]
[Termination "Pablo_dmp won by checkmate"]

1. e4 {[%clk 0:04:58.5]} 1... e5 {[%clk 0:04:58.5]} 2. Nc3 {[%clk 0:04:57.6]}
2... Nc6 {[%clk 0:04:58.4]} 3. Bc4 {[%clk 0:04:56.2]} 3... Bc5 {[%clk
0:04:57.7]} 4. Qg4 {[%clk 0:04:54.6]} 4... g6 {[%clk 0:04:56.2]} 5. Qf3 {[%clk
0:04:53.5]} 5... Nf6 {[%clk 0:04:56.1]} 6. Nge2 {[%clk 0:04:51.2]} 6... d6
{[%clk 0:04:54.4]} 7. d3 {[%clk 0:04:49.3]} 7... Bg4 {[%clk 0:04:50.3]} 8. Qg3
{[%clk 0:04:46.3]} 8... Qd7 {[%clk 0:04:49.7]} 9. h3 {[%clk 0:04:40]} 9... Be6
{[%clk 0:04:45.2]} 10. Bg5 {[%clk 0:04:36.3]} 10... Nh5 {[%clk 0:04:43.2]} 11.
Qf3 {[%clk 0:04:32]} 11... Bxc4 {[%clk 0:04:42.1]} 12. dxc4 {[%clk 0:04:31.5]}
12... O-O {[%clk 0:04:40.7]} 13. Nd5 {[%clk 0:04:30.3]} 13... f6 {[%clk
0:04:32.7]} 14. Bxf6 {[%clk 0:04:25.7]} 14... Nxf6 {[%clk 0:04:30.6]} 15. Qxf6
{[%clk 0:04:24.4]} 15... Rxf6 {[%clk 0:04:29]} 16. Nxf6+ {[%clk 0:04:24.3]}
16... Kf7 {[%clk 0:04:27]} 17. Nxd7 {[%clk 0:04:24.2]} 17... Bd4 {[%clk
0:04:20.3]} 18. c3 {[%clk 0:04:20.6]} 18... Bb6 {[%clk 0:04:05.6]} 19. Nxb6
{[%clk 0:04:19.2]} 19... axb6 {[%clk 0:04:05.5]} 20. O-O {[%clk 0:04:15.2]}
20... Ne7 {[%clk 0:04:05.4]} 21. f4 {[%clk 0:04:13]} 21... Ke6 {[%clk
0:04:03.6]} 22. f5+ {[%clk 0:04:10.8]} 22... gxf5 {[%clk 0:04:01.1]} 23. exf5+
{[%clk 0:04:10.7]} 23... Nxf5 {[%clk 0:04:00.8]} 24. g4 {[%clk 0:04:09.7]} 24...
Nh4 {[%clk 0:03:58.8]} 25. Ng3 {[%clk 0:04:05.8]} 25... Ng6 {[%clk 0:03:54.6]}
26. a3 {[%clk 0:04:04.2]} 26... Nf4 {[%clk 0:03:52.7]} 27. Kh2 {[%clk
0:03:58.4]} 27... h5 {[%clk 0:03:51.3]} 28. Nxh5 {[%clk 0:03:52]} 28... Nd3
{[%clk 0:03:49.7]} 29. Rf6+ {[%clk 0:03:49.7]} 29... Ke7 {[%clk 0:03:48.5]} 30.
Raf1 {[%clk 0:03:49.6]} 30... Rh8 {[%clk 0:03:42.3]} 31. Rf7+ {[%clk 0:03:48.6]}
31... Ke8 {[%clk 0:03:40.9]} 32. Ng7+ {[%clk 0:03:47.7]} 32... Kd8 {[%clk
0:03:37.5]} 33. Ne6+ {[%clk 0:03:46.7]} 33... Ke8 {[%clk 0:03:34.5]} 34. Nxc7+
{[%clk 0:03:45.3]} 34... Kd8 {[%clk 0:03:33.3]} 35. Ne6+ {[%clk 0:03:44.2]}
35... Ke8 {[%clk 0:03:33.2]} 36. Rxb7 {[%clk 0:03:42.3]} 36... Rh6 {[%clk
0:03:26.9]} 37. Rf8# {[%clk 0:03:39.4]} 1-0